{"text_format":"1","workbook":"xlsx","n_sheets":14,"sheets":["Services-Produits","Reference","Patients","Theresia","Retina","HH","Adit","Gadiza","Cun","Samuel","Dobias Iskandar","Titi Salim","Test 2 pages","Ita Yuliati"],"not_rendered":{"charts":0,"images":6,"macros":1,"external_links":1,"defined_names":1,"comments":0,"pivot_tables":0},"unopened":[],"bounds":{"document_bytes":16777216,"sheet_cells":100000,"rows_first":2000,"rows_last":500,"rows_between":2000,"halvings":0,"cell_chars":16384,"cell_head_chars":4096},"cells_cut":0,"cells_raw":0,"read":"whole","date_system":"1900"}

{"sheet":"Services-Produits","index":0,"n_rows":114,"n_cols":2,"rows_kept":114,"cut":false,"hidden":false,"merged":[]}
["Produit","Price"]
["Abbott Freestyle 2",91.4]
["Abbott Sensor",65.3]
["Bactoflor-2023",69.8]
["Biotin",37.25]
["Biotin + NaCl",37.25]
["B-Kompleks",46.8]
["Black cumin capsules",34.799999999999997]
["Bosvene Akba",215.11]
["Cholin Inject",43]
["C-Intercell 650 mg Vitamin C, 90 Kapseln",27.99]
["Curcumin + NaCl 0,9%",116.22]
["Curcumin 150 mg",229.2]
["curcumin 75 mg",116.22]
["E-Inject",41.2]
["Epinativ Injection",133.61000000000001]
["Face treatment Chin contouring",600]
["Fermanose",46.2]
["Fiber-Intercell",40.49]
["Gut Microbiome Therapy",6912.5]
["Gynophilus",19.8]
["Gynophylus",19.8]
["Hepar",43.7]
["Hydroxiprolin",68.900000000000006]
["Hypericin",198.7]
["Immunocare",220]
["Immunocare, personalised",195.7]
["Infraorbital",600]
["Infusion: Curcumin 75 mg",116.22]
["Infusion: Nicotiamide",179.8]
["Infusion: Shoga Öl",670]
["Jantung (Herz)",584.5]
["K2 & D3",34.700000000000003]
["Kantong kemih (Harnblase)",381.35]
["Laetia",45.3]
["Liserotota",345.3]
["Liv 52",14.9]
["Magentropfen",23]
["Magnesium",25.45]
["Magnesium 1000 mg",34.68]
["Magnesium Intercell",15.1]
["Memoserin 90 Kapseln",67.7]
["Microbiome",74.95]
["Microbiome body lotion",29.9]
["Microcare 4 months",571.04999999999995]
["Microniome face serum",69.900000000000006]
["Muskulatur (Otot)",286.39999999999998]
["NAD+",219.66]
["Neuro Amino",163.19999999999999]
["Nicotinamide",179.8]
["NMN, Rapamune, Sildenafil & Tadalafil",67.8]
["Oliphenolia",183.51]
["Oliphenolia + NaCl 0,9% 150 ml",183.51]
["Omega 7",82.6]
["Omega 7.0",81.349999999999994]
["Otak kecil (Kleinhirn)",288]
["Ozempic",129.80000000000001]
["Phenylalanine",106.4]
["Phospolipide",31.28]
["Prodigest",72.349999999999994]
["Q10 i.v. sensitive",178.8]
["Reservatrol + NaCl 0,9% 300 ml",178]
["Resveratrol",178]
["Riboflavin",127.4]
["RNA",516.70000000000005]
["RNA Heart",516.70000000000005]
["RNA Injections 4 vials",516.70000000000005]
["RNA Thymus",516.70000000000005]
["Salvans",13.05]
["Selenium",41.6]
["Senolytics mixture",670]
["Senolytics Mixture",670]
["Spermidin",182.35]
["Tadalafil-Mepha 10 mg",115]
["Tadalafil-Mepha 2.5 mg",115]
["Tadalafil-Mepha 5 mg",115]
["Tamsulosin ",59.9]
["Testicle ",372.45]
["Thymus",516.70000000000005]
["Ventrisana",19.2]
["Vistabel 3 zones",750]
["Vit C",27.99]
["Vit D3",37]
["Vit D3",29.8]
["Vit E Inject I.M."]
["Vit, B Komplex",46.8]
["Vit. C, Zn",21.4]
["Vit. E IM"]
["Vit-C Intercell",27.99]
["Xanax",42.7]
["Zentra inject",60]
["Gut Microbiome Therapy",7199.75]
["Infusion:"]
["Injection:"]
["Infusion & Injections:"]
["Protokoll Lösung 1",147.19999999999999]
["Artesunat",67.2]
["Vit B12",8.1]
["RNA Kidney",438.15]
["RNA Liver",629.45000000000005]
["Bactoflor Kinder",35.74]
["Supplement & Medication:"]
["Microcare personalised"]
["Abbott Freestyle libre",91.4]
["Abbott Freestyle libre 2 sensor 14 days",65.3]
["Jardiance",662.8]
["Microcare"]
["Bactoflor",47.8]
["Xarelto",42.15]
["Repatha",233.55]
["Face cream"]
["Cleanser"]
["Oregano oil"]
["Immune infusion"]

{"sheet":"Reference","index":1,"n_rows":40,"n_cols":4,"rows_kept":40,"cut":false,"hidden":false,"merged":[]}
[]
[]
["Invoice: 55H-92401004"]
["                  04.02.2024"]
[null,null,"Treatment by"]
[null,null,"Dr. Roger Gmür"]
[null,null,"Zürich"]
[]
[]
[]
[]
[]
[]
["Description","Qty","Price","Amount"]
[]
[]
["Gut Microbiome Therapy",4,{"$f":"IFERROR(VLOOKUP(A17,'Services-Produits'!A1:B119,2,FALSE),\"\")","v":6912.5},{"$f":"IFERROR(B17*C17,\"\")","v":27650}]
[null,null,{"$f":"IFERROR(VLOOKUP(A18,'Services-Produits'!A2:B120,2,FALSE),\"\")","v":""},{"$f":"IFERROR(B18*C18,\"\")","v":""}]
[null,null,{"$f":"IFERROR(VLOOKUP(A19,'Services-Produits'!A3:B121,2,FALSE),\"\")","v":""},""]
[null,null,{"$f":"IFERROR(VLOOKUP(A20,'Services-Produits'!A4:B122,2,FALSE),\"\")","v":""},""]
[null,null,{"$f":"IFERROR(VLOOKUP(A21,'Services-Produits'!A5:B123,2,FALSE),\"\")","v":""},""]
[null,null,{"$f":"IFERROR(VLOOKUP(A22,'Services-Produits'!A6:B124,2,FALSE),\"\")","v":""},""]
[null,null,{"$f":"IFERROR(VLOOKUP(A23,'Services-Produits'!A7:B125,2,FALSE),\"\")","v":""},""]
[null,null,{"$f":"IFERROR(VLOOKUP(A24,'Services-Produits'!A8:B126,2,FALSE),\"\")","v":""},""]
[null,null,{"$f":"IFERROR(VLOOKUP(A25,'Services-Produits'!A9:B127,2,FALSE),\"\")","v":""},""]
[null,null,{"$f":"IFERROR(VLOOKUP(A26,'Services-Produits'!A10:B128,2,FALSE),\"\")","v":""},""]
[null,null,{"$f":"IFERROR(VLOOKUP(A27,'Services-Produits'!A11:B129,2,FALSE),\"\")","v":""},""]
[null,null,{"$f":"IFERROR(VLOOKUP(A28,'Services-Produits'!A12:B130,2,FALSE),\"\")","v":""},""]
[null,null,{"$f":"IFERROR(VLOOKUP(A29,'Services-Produits'!A13:B131,2,FALSE),\"\")","v":""},""]
[null,null,{"$f":"IFERROR(VLOOKUP(A30,'Services-Produits'!A14:B132,2,FALSE),\"\")","v":""},""]
[null,null,{"$f":"IFERROR(VLOOKUP(A31,'Services-Produits'!A8:B126,2,FALSE),\"\")","v":""},""]
[null,null,{"$f":"IFERROR(VLOOKUP(A32,'Services-Produits'!A9:B127,2,FALSE),\"\")","v":""},""]
[null,null,{"$f":"IFERROR(VLOOKUP(A33,'Services-Produits'!A10:B128,2,FALSE),\"\")","v":""},""]
[null,null,{"$f":"IFERROR(VLOOKUP(A34,'Services-Produits'!A11:B129,2,FALSE),\"\")","v":""},""]
[null,null,{"$f":"IFERROR(VLOOKUP(A35,'Services-Produits'!A12:B130,2,FALSE),\"\")","v":""},""]
[null,null,{"$f":"IFERROR(VLOOKUP(A36,'Services-Produits'!A13:B131,2,FALSE),\"\")","v":""},""]
[null,null,{"$f":"IFERROR(VLOOKUP(A37,'Services-Produits'!A14:B132,2,FALSE),\"\")","v":""}]
["Total in CHF",null,null,{"$f":"SUM(D17:D37)","v":27650}]
[]
["Thank you very much for your trust!"]

{"sheet":"Patients","index":2,"n_rows":49,"n_cols":8,"rows_kept":49,"cut":false,"hidden":false,"merged":[]}
["Adex Yudiswan",null,null,"Jakarta","Indonesia","M","1974-12-03","SM"]
["Agus Andriyanto",null,null,"Jakarta","Indonesia","M","1967-02-16","SM"]
["Armand Wahyudi Hartono",null,null,"Jakarta","Indonesia","M","1975-05-20","SM"]
["Budi Satrio",null,null,"Jakarta","Indonesia","M","1976-05-31","SBL"]
["Chan Choi Moi",null,null,"Jakarta","Indonesia","F","1972-04-28","SM"]
["Deddy Prasetyo",null,null,"Jakarta","Indonesia","M","1968-07-26","SM"]
["Dian Suri Iriani",null,null,"Jakarta","Indonesia","F","1979-08-02","SBL"]
["Dobias Iskandar",null,null,"Jakarta","Indonesia","M","1965-11-16","SM"]
["Eileen Patricia Hartono",null,null,"Jakarta","Indonesia","F","1973-05-01","SBL"]
["Erminda Melayeni",null,null,"Jakarta","Indonesia","F","1975-10-25","SM"]
["Escy Soeleiman",null,null,"Jakarta","Indonesia","F","1965-12-09","SBL"]
["Evy Celiyanti",null,null,"Jakarta","Indonesia","F","1972-03-07","SM"]
["Herman Herry Adranacus",null,null,"Jakarta","Indonesia","M","1962-11-26","SM"]
["Isandi Harahap",null,null,"Jakarta","Indonesia","M","1958-12-10","SBL"]
["Karyoto",null,null,"Jakarta","Indonesia","M","1968-10-27","SBL"]
["Lina Iskandar",null,null,"Jakarta","Indonesia","F","1970-06-25","SBL"]
["Martha Dwi Maryani",null,null,"Jakarta","Indonesia","F","1969-05-21","SM"]
["Muhamad Mardiono",null,null,"Jakarta","Indonesia","M","1957-07-11","SM"]
["Muljadi Tjahjono",null,null,"Jakarta","Indonesia","M","1965-07-22","SM"]
["Nyoman Adhi Suryadnyana",null,null,"Jakarta","Indonesia","M","1974-10-15","SBL"]
["Romyus Permana",null,null,"Jakarta","Indonesia","M","1978-10-20","SBL"]
["Salim Lan Jaya Liem",null,null,"Jakarta","Indonesia","M","1971-06-01","SM"]
["Samuel Bob",null,null,"Jakarta","Indonesia","M","1974-01-04","SM"]
["Samuel Rusli",null,null,"Jakarta","Indonesia","M","1968-04-01","SM"]
["Shanti Tan",null,null,"Jakarta","Indonesia","F","1978-09-10","SBL"]
["Shu Shu",null,null,"Jakarta","Indonesia","F",null,"SBL"]
["Sri Wahyuswinta",null,null,"Jakarta","Indonesia","F","1969-04-04","SM"]
["Tan Kim Siong",null,null,"Jakarta","Indonesia","M","1970-11-09","SM"]
["Tan Siew Chang",null,null,"Jakarta","Indonesia","F","1967-01-13","SM"]
["Titi Salim",null,null,"Jakarta","Indonesia","M","1971-06-01","SBL"]
["Wahyu Widada",null,null,"Jakarta","Indonesia","M","1969-09-11","SM"]
["Wisnu Hermawan",null,null,"Jakarta","Indonesia","M","1972-02-16","SM"]
["Yenni Rista S",null,null,"Jakarta","Indonesia","F","1958-07-18","SBL"]
["Yenny Wijaya",null,null,"Jakarta","Indonesia","F","1973-03-16","SM"]
["Yuldi Yusman",null,null,"Jakarta","Indonesia","M","1975-07-29","SM"]
["Yulia Gunawan",null,null,"Jakarta","Indonesia","F","1983-01-06","SM"]
["Ita Yuliati",null,null,"Jakarta","Indonesia","F","1960-07-30","SBL"]
["Doni Irawan Soenarso",null,null,"Jakarta","Indonesia","M","1960-09-13","SBL"]
["Ken Anjani",null,null,"Jakarta","Indonesia","F","1989-09-11","SBL"]
["Vino Romano",null,null,"Jakarta","Indonesia","M","1988-11-11","SBL"]
["Mouna F. Said",null,null,"Jakarta","Indonesia","F","1975-09-25","SBL"]
["Tschun Tschun",null,null,"Jakarta","Indonesia",null,null,"SBL"]
["Cun",null,null,"Jakarta","Indonesia",null,null,"SBL"]
["Samuel",null,null,"Jakarta","Indonesia",null,null,"SBL"]
["Gadiza",null,null,"Jakarta","Indonesia",null,null,"SBL"]
["Adit",null,null,"Jakarta","Indonesia",null,null,"SBL"]
["HH",null,null,"Jakarta","Indonesia",null,null,"SBL"]
["Retina",null,null,"Jakarta","Indonesia",null,null,"SBL"]
["Theresia",null,null,"Jakarta","Indonesia",null,null,"SBL"]

{"sheet":"Theresia","index":3,"n_rows":40,"n_cols":4,"rows_kept":40,"cut":false,"hidden":false,"merged":[]}
[]
[]
["Invoice: 55H-92401004"]
["                  04.02.2024"]
[]
[]
[]
[]
["Mrs. Theresia"]
["Jakarta"]
["Indonesia"]
[]
[]
["Description","Qty","Price","Amount"]
["Patient: Theresia, , "]
[]
["Repatha",3,{"$f":"IFERROR(VLOOKUP(A17,'Services-Produits'!A1:B119,2,FALSE),\"\")","v":233.55},{"$f":"IFERROR(B17*C17,\"\")","v":700.65000000000009}]
["Omega 7",2,{"$f":"IFERROR(VLOOKUP(A18,'Services-Produits'!A2:B120,2,FALSE),\"\")","v":82.6},{"$f":"IFERROR(B18*C18,\"\")","v":165.2}]
["Protokoll Lösung 1",1,{"$f":"IFERROR(VLOOKUP(A19,'Services-Produits'!A3:B121,2,FALSE),\"\")","v":147.19999999999999},147.19999999999999]
["Spermidin",1,{"$f":"IFERROR(VLOOKUP(A20,'Services-Produits'!A4:B122,2,FALSE),\"\")","v":182.35},182.35]
["Hydroxiprolin",1,{"$f":"IFERROR(VLOOKUP(A21,'Services-Produits'!A5:B123,2,FALSE),\"\")","v":68.900000000000006},68.900000000000006]
["Black cumin capsules",1,{"$f":"IFERROR(VLOOKUP(A22,'Services-Produits'!A6:B124,2,FALSE),\"\")","v":34.799999999999997},34.799999999999997]
["Microbiome body lotion",5,{"$f":"IFERROR(VLOOKUP(A23,'Services-Produits'!A7:B125,2,FALSE),\"\")","v":29.9},149.5]
["Microniome face serum",4,{"$f":"IFERROR(VLOOKUP(A24,'Services-Produits'!A8:B126,2,FALSE),\"\")","v":69.900000000000006},279.60000000000002]
["Face cream",3,{"$f":"IFERROR(VLOOKUP(A25,'Services-Produits'!A9:B127,2,FALSE),\"\")","v":0},0]
["Cleanser",5,{"$f":"IFERROR(VLOOKUP(A26,'Services-Produits'!A10:B128,2,FALSE),\"\")","v":0},0]
["Oregano oil",2,{"$f":"IFERROR(VLOOKUP(A27,'Services-Produits'!A11:B129,2,FALSE),\"\")","v":0},0]
["Immune infusion",2,{"$f":"IFERROR(VLOOKUP(A28,'Services-Produits'!A12:B130,2,FALSE),\"\")","v":0},0]
[null,null,{"$f":"IFERROR(VLOOKUP(A29,'Services-Produits'!A13:B131,2,FALSE),\"\")","v":""},""]
[null,null,{"$f":"IFERROR(VLOOKUP(A30,'Services-Produits'!A14:B132,2,FALSE),\"\")","v":""},""]
[null,null,{"$f":"IFERROR(VLOOKUP(A31,'Services-Produits'!A8:B126,2,FALSE),\"\")","v":""},""]
[null,null,{"$f":"IFERROR(VLOOKUP(A32,'Services-Produits'!A9:B127,2,FALSE),\"\")","v":""},""]
[null,null,{"$f":"IFERROR(VLOOKUP(A33,'Services-Produits'!A10:B128,2,FALSE),\"\")","v":""},""]
[null,null,{"$f":"IFERROR(VLOOKUP(A34,'Services-Produits'!A11:B129,2,FALSE),\"\")","v":""},""]
[null,null,{"$f":"IFERROR(VLOOKUP(A35,'Services-Produits'!A12:B130,2,FALSE),\"\")","v":""},""]
[null,null,{"$f":"IFERROR(VLOOKUP(A36,'Services-Produits'!A13:B131,2,FALSE),\"\")","v":""},""]
[null,null,{"$f":"IFERROR(VLOOKUP(A37,'Services-Produits'!A14:B132,2,FALSE),\"\")","v":""}]
["Total in CHF",null,null,{"$f":"SUM(D17:D37)","v":1728.2000000000003}]
[]
["Thank you very much for your trust!"]

{"sheet":"Retina","index":4,"n_rows":40,"n_cols":4,"rows_kept":40,"cut":false,"hidden":false,"merged":[]}
[]
[]
["Invoice: 55H-92401004"]
["                  04.02.2024"]
[]
[]
[]
[]
["Mrs. Retina"]
["Jakarta"]
["Indonesia"]
[]
[]
["Description","Qty","Price","Amount"]
["Patient: Retina, , "]
[]
["Microcare",0,{"$f":"IFERROR(VLOOKUP(A17,'Services-Produits'!A1:B119,2,FALSE),\"\")","v":0},{"$f":"IFERROR(B17*C17,\"\")","v":0}]
["Xarelto",1,{"$f":"IFERROR(VLOOKUP(A18,'Services-Produits'!A2:B120,2,FALSE),\"\")","v":42.15},{"$f":"IFERROR(B18*C18,\"\")","v":42.15}]
[null,null,{"$f":"IFERROR(VLOOKUP(A19,'Services-Produits'!A3:B121,2,FALSE),\"\")","v":""},""]
[null,null,{"$f":"IFERROR(VLOOKUP(A20,'Services-Produits'!A4:B122,2,FALSE),\"\")","v":""},""]
[null,null,{"$f":"IFERROR(VLOOKUP(A21,'Services-Produits'!A5:B123,2,FALSE),\"\")","v":""},""]
[null,null,{"$f":"IFERROR(VLOOKUP(A22,'Services-Produits'!A6:B124,2,FALSE),\"\")","v":""},""]
[null,null,{"$f":"IFERROR(VLOOKUP(A23,'Services-Produits'!A7:B125,2,FALSE),\"\")","v":""},""]
[null,null,{"$f":"IFERROR(VLOOKUP(A24,'Services-Produits'!A8:B126,2,FALSE),\"\")","v":""},""]
[null,null,{"$f":"IFERROR(VLOOKUP(A25,'Services-Produits'!A9:B127,2,FALSE),\"\")","v":""},""]
[null,null,{"$f":"IFERROR(VLOOKUP(A26,'Services-Produits'!A10:B128,2,FALSE),\"\")","v":""},""]
[null,null,{"$f":"IFERROR(VLOOKUP(A27,'Services-Produits'!A11:B129,2,FALSE),\"\")","v":""},""]
[null,null,{"$f":"IFERROR(VLOOKUP(A28,'Services-Produits'!A12:B130,2,FALSE),\"\")","v":""},""]
[null,null,{"$f":"IFERROR(VLOOKUP(A29,'Services-Produits'!A13:B131,2,FALSE),\"\")","v":""},""]
[null,null,{"$f":"IFERROR(VLOOKUP(A30,'Services-Produits'!A14:B132,2,FALSE),\"\")","v":""},""]
[null,null,{"$f":"IFERROR(VLOOKUP(A31,'Services-Produits'!A8:B126,2,FALSE),\"\")","v":""},""]
[null,null,{"$f":"IFERROR(VLOOKUP(A32,'Services-Produits'!A9:B127,2,FALSE),\"\")","v":""},""]
[null,null,{"$f":"IFERROR(VLOOKUP(A33,'Services-Produits'!A10:B128,2,FALSE),\"\")","v":""},""]
[null,null,{"$f":"IFERROR(VLOOKUP(A34,'Services-Produits'!A11:B129,2,FALSE),\"\")","v":""},""]
[null,null,{"$f":"IFERROR(VLOOKUP(A35,'Services-Produits'!A12:B130,2,FALSE),\"\")","v":""},""]
[null,null,{"$f":"IFERROR(VLOOKUP(A36,'Services-Produits'!A13:B131,2,FALSE),\"\")","v":""},""]
[null,null,{"$f":"IFERROR(VLOOKUP(A37,'Services-Produits'!A14:B132,2,FALSE),\"\")","v":""}]
["Total in CHF",null,null,{"$f":"SUM(D17:D37)","v":42.15}]
[]
["Thank you very much for your trust!"]

{"sheet":"HH","index":5,"n_rows":40,"n_cols":4,"rows_kept":40,"cut":false,"hidden":false,"merged":[]}
[]
[]
["Invoice: 55H-92401004"]
["                  04.02.2024"]
[]
[]
[]
[]
["Mrs. HH"]
["Jakarta"]
["Indonesia"]
[]
[]
["Description","Qty","Price","Amount"]
["Patient: HH, , "]
[]
["Tamsulosin ",5,{"$f":"IFERROR(VLOOKUP(A17,'Services-Produits'!A1:B119,2,FALSE),\"\")","v":59.9},{"$f":"IFERROR(B17*C17,\"\")","v":299.5}]
["Tadalafil-Mepha 10 mg",5,{"$f":"IFERROR(VLOOKUP(A18,'Services-Produits'!A2:B120,2,FALSE),\"\")","v":115},{"$f":"IFERROR(B18*C18,\"\")","v":575}]
[null,null,{"$f":"IFERROR(VLOOKUP(A19,'Services-Produits'!A3:B121,2,FALSE),\"\")","v":""},""]
[null,null,{"$f":"IFERROR(VLOOKUP(A20,'Services-Produits'!A4:B122,2,FALSE),\"\")","v":""},""]
[null,null,{"$f":"IFERROR(VLOOKUP(A21,'Services-Produits'!A5:B123,2,FALSE),\"\")","v":""},""]
[null,null,{"$f":"IFERROR(VLOOKUP(A22,'Services-Produits'!A6:B124,2,FALSE),\"\")","v":""},""]
[null,null,{"$f":"IFERROR(VLOOKUP(A23,'Services-Produits'!A7:B125,2,FALSE),\"\")","v":""},""]
[null,null,{"$f":"IFERROR(VLOOKUP(A24,'Services-Produits'!A8:B126,2,FALSE),\"\")","v":""},""]
[null,null,{"$f":"IFERROR(VLOOKUP(A25,'Services-Produits'!A9:B127,2,FALSE),\"\")","v":""},""]
[null,null,{"$f":"IFERROR(VLOOKUP(A26,'Services-Produits'!A10:B128,2,FALSE),\"\")","v":""},""]
[null,null,{"$f":"IFERROR(VLOOKUP(A27,'Services-Produits'!A11:B129,2,FALSE),\"\")","v":""},""]
[null,null,{"$f":"IFERROR(VLOOKUP(A28,'Services-Produits'!A12:B130,2,FALSE),\"\")","v":""},""]
[null,null,{"$f":"IFERROR(VLOOKUP(A29,'Services-Produits'!A13:B131,2,FALSE),\"\")","v":""},""]
[null,null,{"$f":"IFERROR(VLOOKUP(A30,'Services-Produits'!A14:B132,2,FALSE),\"\")","v":""},""]
[null,null,{"$f":"IFERROR(VLOOKUP(A31,'Services-Produits'!A8:B126,2,FALSE),\"\")","v":""},""]
[null,null,{"$f":"IFERROR(VLOOKUP(A32,'Services-Produits'!A9:B127,2,FALSE),\"\")","v":""},""]
[null,null,{"$f":"IFERROR(VLOOKUP(A33,'Services-Produits'!A10:B128,2,FALSE),\"\")","v":""},""]
[null,null,{"$f":"IFERROR(VLOOKUP(A34,'Services-Produits'!A11:B129,2,FALSE),\"\")","v":""},""]
[null,null,{"$f":"IFERROR(VLOOKUP(A35,'Services-Produits'!A12:B130,2,FALSE),\"\")","v":""},""]
[null,null,{"$f":"IFERROR(VLOOKUP(A36,'Services-Produits'!A13:B131,2,FALSE),\"\")","v":""},""]
[null,null,{"$f":"IFERROR(VLOOKUP(A37,'Services-Produits'!A14:B132,2,FALSE),\"\")","v":""}]
["Total in CHF",null,null,{"$f":"SUM(D17:D37)","v":874.5}]
[]
["Thank you very much for your trust!"]

{"sheet":"Adit","index":6,"n_rows":40,"n_cols":4,"rows_kept":40,"cut":false,"hidden":false,"merged":[]}
[]
[]
["Invoice: 55H-92401004"]
["                  04.02.2024"]
[]
[]
[]
[]
["Mrs. Adit"]
["Jakarta"]
["Indonesia"]
[]
[]
["Description","Qty","Price","Amount"]
["Patient: Adit, , "]
[]
["Microcare",0,{"$f":"IFERROR(VLOOKUP(A17,'Services-Produits'!A1:B119,2,FALSE),\"\")","v":0},{"$f":"IFERROR(B17*C17,\"\")","v":0}]
[null,null,{"$f":"IFERROR(VLOOKUP(A18,'Services-Produits'!A2:B120,2,FALSE),\"\")","v":""},{"$f":"IFERROR(B18*C18,\"\")","v":""}]
[null,null,{"$f":"IFERROR(VLOOKUP(A19,'Services-Produits'!A3:B121,2,FALSE),\"\")","v":""},""]
[null,null,{"$f":"IFERROR(VLOOKUP(A20,'Services-Produits'!A4:B122,2,FALSE),\"\")","v":""},""]
[null,null,{"$f":"IFERROR(VLOOKUP(A21,'Services-Produits'!A5:B123,2,FALSE),\"\")","v":""},""]
[null,null,{"$f":"IFERROR(VLOOKUP(A22,'Services-Produits'!A6:B124,2,FALSE),\"\")","v":""},""]
[null,null,{"$f":"IFERROR(VLOOKUP(A23,'Services-Produits'!A7:B125,2,FALSE),\"\")","v":""},""]
[null,null,{"$f":"IFERROR(VLOOKUP(A24,'Services-Produits'!A8:B126,2,FALSE),\"\")","v":""},""]
[null,null,{"$f":"IFERROR(VLOOKUP(A25,'Services-Produits'!A9:B127,2,FALSE),\"\")","v":""},""]
[null,null,{"$f":"IFERROR(VLOOKUP(A26,'Services-Produits'!A10:B128,2,FALSE),\"\")","v":""},""]
[null,null,{"$f":"IFERROR(VLOOKUP(A27,'Services-Produits'!A11:B129,2,FALSE),\"\")","v":""},""]
[null,null,{"$f":"IFERROR(VLOOKUP(A28,'Services-Produits'!A12:B130,2,FALSE),\"\")","v":""},""]
[null,null,{"$f":"IFERROR(VLOOKUP(A29,'Services-Produits'!A13:B131,2,FALSE),\"\")","v":""},""]
[null,null,{"$f":"IFERROR(VLOOKUP(A30,'Services-Produits'!A14:B132,2,FALSE),\"\")","v":""},""]
[null,null,{"$f":"IFERROR(VLOOKUP(A31,'Services-Produits'!A8:B126,2,FALSE),\"\")","v":""},""]
[null,null,{"$f":"IFERROR(VLOOKUP(A32,'Services-Produits'!A9:B127,2,FALSE),\"\")","v":""},""]
[null,null,{"$f":"IFERROR(VLOOKUP(A33,'Services-Produits'!A10:B128,2,FALSE),\"\")","v":""},""]
[null,null,{"$f":"IFERROR(VLOOKUP(A34,'Services-Produits'!A11:B129,2,FALSE),\"\")","v":""},""]
[null,null,{"$f":"IFERROR(VLOOKUP(A35,'Services-Produits'!A12:B130,2,FALSE),\"\")","v":""},""]
[null,null,{"$f":"IFERROR(VLOOKUP(A36,'Services-Produits'!A13:B131,2,FALSE),\"\")","v":""},""]
[null,null,{"$f":"IFERROR(VLOOKUP(A37,'Services-Produits'!A14:B132,2,FALSE),\"\")","v":""}]
["Total in CHF",null,null,{"$f":"SUM(D17:D37)","v":0}]
[]
["Thank you very much for your trust!"]

{"sheet":"Gadiza","index":7,"n_rows":40,"n_cols":4,"rows_kept":40,"cut":false,"hidden":false,"merged":[]}
[]
[]
["Invoice: 55H-92401004"]
["                  04.02.2024"]
[]
[]
[]
[]
["Mrs. Gadiza"]
["Jakarta"]
["Indonesia"]
[]
[]
["Description","Qty","Price","Amount"]
["Patient: Gadiza, , "]
[]
["Epinativ Injection",3,{"$f":"IFERROR(VLOOKUP(A17,'Services-Produits'!A1:B119,2,FALSE),\"\")","v":133.61000000000001},{"$f":"IFERROR(B17*C17,\"\")","v":400.83000000000004}]
["Curcumin 150 mg",1,{"$f":"IFERROR(VLOOKUP(A18,'Services-Produits'!A2:B120,2,FALSE),\"\")","v":229.2},{"$f":"IFERROR(B18*C18,\"\")","v":229.2}]
["Riboflavin",1,{"$f":"IFERROR(VLOOKUP(A19,'Services-Produits'!A3:B121,2,FALSE),\"\")","v":127.4},127.4]
[null,null,{"$f":"IFERROR(VLOOKUP(A20,'Services-Produits'!A4:B122,2,FALSE),\"\")","v":""},""]
[null,null,{"$f":"IFERROR(VLOOKUP(A21,'Services-Produits'!A5:B123,2,FALSE),\"\")","v":""},""]
[null,null,{"$f":"IFERROR(VLOOKUP(A22,'Services-Produits'!A6:B124,2,FALSE),\"\")","v":""},""]
[null,null,{"$f":"IFERROR(VLOOKUP(A23,'Services-Produits'!A7:B125,2,FALSE),\"\")","v":""},""]
[null,null,{"$f":"IFERROR(VLOOKUP(A24,'Services-Produits'!A8:B126,2,FALSE),\"\")","v":""},""]
[null,null,{"$f":"IFERROR(VLOOKUP(A25,'Services-Produits'!A9:B127,2,FALSE),\"\")","v":""},""]
[null,null,{"$f":"IFERROR(VLOOKUP(A26,'Services-Produits'!A10:B128,2,FALSE),\"\")","v":""},""]
[null,null,{"$f":"IFERROR(VLOOKUP(A27,'Services-Produits'!A11:B129,2,FALSE),\"\")","v":""},""]
[null,null,{"$f":"IFERROR(VLOOKUP(A28,'Services-Produits'!A12:B130,2,FALSE),\"\")","v":""},""]
[null,null,{"$f":"IFERROR(VLOOKUP(A29,'Services-Produits'!A13:B131,2,FALSE),\"\")","v":""},""]
[null,null,{"$f":"IFERROR(VLOOKUP(A30,'Services-Produits'!A14:B132,2,FALSE),\"\")","v":""},""]
[null,null,{"$f":"IFERROR(VLOOKUP(A31,'Services-Produits'!A8:B126,2,FALSE),\"\")","v":""},""]
[null,null,{"$f":"IFERROR(VLOOKUP(A32,'Services-Produits'!A9:B127,2,FALSE),\"\")","v":""},""]
[null,null,{"$f":"IFERROR(VLOOKUP(A33,'Services-Produits'!A10:B128,2,FALSE),\"\")","v":""},""]
[null,null,{"$f":"IFERROR(VLOOKUP(A34,'Services-Produits'!A11:B129,2,FALSE),\"\")","v":""},""]
[null,null,{"$f":"IFERROR(VLOOKUP(A35,'Services-Produits'!A12:B130,2,FALSE),\"\")","v":""},""]
[null,null,{"$f":"IFERROR(VLOOKUP(A36,'Services-Produits'!A13:B131,2,FALSE),\"\")","v":""},""]
[null,null,{"$f":"IFERROR(VLOOKUP(A37,'Services-Produits'!A14:B132,2,FALSE),\"\")","v":""}]
["Total in CHF",null,null,{"$f":"SUM(D17:D37)","v":757.43}]
[]
["Thank you very much for your trust!"]

{"sheet":"Cun","index":8,"n_rows":40,"n_cols":4,"rows_kept":40,"cut":false,"hidden":false,"merged":[]}
[]
[]
["Invoice: 55H-9240100X"]
["                  29.01.2024"]
[]
[]
[]
[]
["Mrs. Cun"]
["Jakarta"]
["Indonesia"]
[]
[]
["Description","Qty","Price","Amount"]
["Patient: Cun, , "]
[]
["Microcare",0,{"$f":"IFERROR(VLOOKUP(A17,'Services-Produits'!A1:B119,2,FALSE),\"\")","v":0},{"$f":"IFERROR(B17*C17,\"\")","v":0}]
["Cholin Inject",1,{"$f":"IFERROR(VLOOKUP(A18,'Services-Produits'!A2:B120,2,FALSE),\"\")","v":43},{"$f":"IFERROR(B18*C18,\"\")","v":43}]
[null,null,{"$f":"IFERROR(VLOOKUP(A19,'Services-Produits'!A3:B121,2,FALSE),\"\")","v":""},""]
[null,null,{"$f":"IFERROR(VLOOKUP(A20,'Services-Produits'!A4:B122,2,FALSE),\"\")","v":""},""]
[null,null,{"$f":"IFERROR(VLOOKUP(A21,'Services-Produits'!A5:B123,2,FALSE),\"\")","v":""},""]
[null,null,{"$f":"IFERROR(VLOOKUP(A22,'Services-Produits'!A6:B124,2,FALSE),\"\")","v":""},""]
[null,null,{"$f":"IFERROR(VLOOKUP(A23,'Services-Produits'!A7:B125,2,FALSE),\"\")","v":""},""]
[null,null,{"$f":"IFERROR(VLOOKUP(A24,'Services-Produits'!A8:B126,2,FALSE),\"\")","v":""},""]
[null,null,{"$f":"IFERROR(VLOOKUP(A25,'Services-Produits'!A9:B127,2,FALSE),\"\")","v":""},""]
[null,null,{"$f":"IFERROR(VLOOKUP(A26,'Services-Produits'!A10:B128,2,FALSE),\"\")","v":""},""]
[null,null,{"$f":"IFERROR(VLOOKUP(A27,'Services-Produits'!A11:B129,2,FALSE),\"\")","v":""},""]
[null,null,{"$f":"IFERROR(VLOOKUP(A28,'Services-Produits'!A12:B130,2,FALSE),\"\")","v":""},""]
[null,null,{"$f":"IFERROR(VLOOKUP(A29,'Services-Produits'!A13:B131,2,FALSE),\"\")","v":""},""]
[null,null,{"$f":"IFERROR(VLOOKUP(A30,'Services-Produits'!A14:B132,2,FALSE),\"\")","v":""},""]
[null,null,{"$f":"IFERROR(VLOOKUP(A31,'Services-Produits'!A8:B126,2,FALSE),\"\")","v":""},""]
[null,null,{"$f":"IFERROR(VLOOKUP(A32,'Services-Produits'!A9:B127,2,FALSE),\"\")","v":""},""]
[null,null,{"$f":"IFERROR(VLOOKUP(A33,'Services-Produits'!A10:B128,2,FALSE),\"\")","v":""},""]
[null,null,{"$f":"IFERROR(VLOOKUP(A34,'Services-Produits'!A11:B129,2,FALSE),\"\")","v":""},""]
[null,null,{"$f":"IFERROR(VLOOKUP(A35,'Services-Produits'!A12:B130,2,FALSE),\"\")","v":""},""]
[null,null,{"$f":"IFERROR(VLOOKUP(A36,'Services-Produits'!A13:B131,2,FALSE),\"\")","v":""},""]
[null,null,{"$f":"IFERROR(VLOOKUP(A37,'Services-Produits'!A14:B132,2,FALSE),\"\")","v":""}]
["Total in CHF",null,null,{"$f":"SUM(D17:D37)","v":43}]
[]
["Thank you very much for your trust!"]

{"sheet":"Samuel","index":9,"n_rows":40,"n_cols":4,"rows_kept":40,"cut":false,"hidden":false,"merged":[]}
[]
[]
["Invoice: 55H-9240100X"]
["                  04.02.2024"]
[]
[]
[]
[]
["Mrs. Samuel"]
["Jakarta"]
["Indonesia"]
[]
[]
["Description","Qty","Price","Amount"]
["Patient: Samuel, , "]
[]
["Microcare",0,{"$f":"IFERROR(VLOOKUP(A17,'Services-Produits'!A1:B119,2,FALSE),\"\")","v":0},{"$f":"IFERROR(B17*C17,\"\")","v":0}]
["Bactoflor",1,{"$f":"IFERROR(VLOOKUP(A18,'Services-Produits'!A2:B120,2,FALSE),\"\")","v":47.8},{"$f":"IFERROR(B18*C18,\"\")","v":47.8}]
[null,null,{"$f":"IFERROR(VLOOKUP(A19,'Services-Produits'!A3:B121,2,FALSE),\"\")","v":""},""]
[null,null,{"$f":"IFERROR(VLOOKUP(A20,'Services-Produits'!A4:B122,2,FALSE),\"\")","v":""},""]
[null,null,{"$f":"IFERROR(VLOOKUP(A21,'Services-Produits'!A5:B123,2,FALSE),\"\")","v":""},""]
[null,null,{"$f":"IFERROR(VLOOKUP(A22,'Services-Produits'!A6:B124,2,FALSE),\"\")","v":""},""]
[null,null,{"$f":"IFERROR(VLOOKUP(A23,'Services-Produits'!A7:B125,2,FALSE),\"\")","v":""},""]
[null,null,{"$f":"IFERROR(VLOOKUP(A24,'Services-Produits'!A8:B126,2,FALSE),\"\")","v":""},""]
[null,null,{"$f":"IFERROR(VLOOKUP(A25,'Services-Produits'!A9:B127,2,FALSE),\"\")","v":""},""]
[null,null,{"$f":"IFERROR(VLOOKUP(A26,'Services-Produits'!A10:B128,2,FALSE),\"\")","v":""},""]
[null,null,{"$f":"IFERROR(VLOOKUP(A27,'Services-Produits'!A11:B129,2,FALSE),\"\")","v":""},""]
[null,null,{"$f":"IFERROR(VLOOKUP(A28,'Services-Produits'!A12:B130,2,FALSE),\"\")","v":""},""]
[null,null,{"$f":"IFERROR(VLOOKUP(A29,'Services-Produits'!A13:B131,2,FALSE),\"\")","v":""},""]
[null,null,{"$f":"IFERROR(VLOOKUP(A30,'Services-Produits'!A14:B132,2,FALSE),\"\")","v":""},""]
[null,null,{"$f":"IFERROR(VLOOKUP(A31,'Services-Produits'!A8:B126,2,FALSE),\"\")","v":""},""]
[null,null,{"$f":"IFERROR(VLOOKUP(A32,'Services-Produits'!A9:B127,2,FALSE),\"\")","v":""},""]
[null,null,{"$f":"IFERROR(VLOOKUP(A33,'Services-Produits'!A10:B128,2,FALSE),\"\")","v":""},""]
[null,null,{"$f":"IFERROR(VLOOKUP(A34,'Services-Produits'!A11:B129,2,FALSE),\"\")","v":""},""]
[null,null,{"$f":"IFERROR(VLOOKUP(A35,'Services-Produits'!A12:B130,2,FALSE),\"\")","v":""},""]
[null,null,{"$f":"IFERROR(VLOOKUP(A36,'Services-Produits'!A13:B131,2,FALSE),\"\")","v":""},""]
[null,null,{"$f":"IFERROR(VLOOKUP(A37,'Services-Produits'!A14:B132,2,FALSE),\"\")","v":""}]
["Total in CHF",null,null,{"$f":"SUM(D17:D37)","v":47.8}]
[]
["Thank you very much for your trust!"]

{"sheet":"Dobias Iskandar","index":10,"n_rows":40,"n_cols":4,"rows_kept":40,"cut":false,"hidden":false,"merged":[]}
[]
[]
["Invoice: 55H-92401005"]
["                  29.01.2024"]
[]
[]
[]
[]
["Mr. Dobias Iskandar"]
["Jakarta"]
["Indonesia"]
[]
[]
["Description","Qty","Price","Amount"]
["Patient: Dobias Iskandar, M, 16.11.1965"]
[]
["Cholin Inject",10,{"$f":"IFERROR(VLOOKUP(A17,'Services-Produits'!A1:B119,2,FALSE),\"\")","v":43},{"$f":"IFERROR(B17*C17,\"\")","v":430}]
["Microbiome",5,{"$f":"IFERROR(VLOOKUP(A18,'Services-Produits'!A2:B120,2,FALSE),\"\")","v":74.95},{"$f":"IFERROR(B18*C18,\"\")","v":374.75}]
["Omega 7",1,{"$f":"IFERROR(VLOOKUP(A19,'Services-Produits'!A3:B121,2,FALSE),\"\")","v":82.6},82.6]
["Tadalafil-Mepha 10 mg",5,{"$f":"IFERROR(VLOOKUP(A20,'Services-Produits'!A4:B122,2,FALSE),\"\")","v":115},575]
["Jardiance",null,{"$f":"IFERROR(VLOOKUP(A21,'Services-Produits'!A5:B123,2,FALSE),\"\")","v":662.8},0]
[null,null,{"$f":"IFERROR(VLOOKUP(A22,'Services-Produits'!A6:B124,2,FALSE),\"\")","v":""},""]
[null,null,{"$f":"IFERROR(VLOOKUP(A23,'Services-Produits'!A7:B125,2,FALSE),\"\")","v":""},""]
[null,null,{"$f":"IFERROR(VLOOKUP(A24,'Services-Produits'!A8:B126,2,FALSE),\"\")","v":""},""]
[null,null,{"$f":"IFERROR(VLOOKUP(A25,'Services-Produits'!A9:B127,2,FALSE),\"\")","v":""},""]
[null,null,{"$f":"IFERROR(VLOOKUP(A26,'Services-Produits'!A10:B128,2,FALSE),\"\")","v":""},""]
[null,null,{"$f":"IFERROR(VLOOKUP(A27,'Services-Produits'!A11:B129,2,FALSE),\"\")","v":""},""]
[null,null,{"$f":"IFERROR(VLOOKUP(A28,'Services-Produits'!A12:B130,2,FALSE),\"\")","v":""},""]
[null,null,{"$f":"IFERROR(VLOOKUP(A29,'Services-Produits'!A13:B131,2,FALSE),\"\")","v":""},""]
[null,null,{"$f":"IFERROR(VLOOKUP(A30,'Services-Produits'!A14:B132,2,FALSE),\"\")","v":""},""]
[null,null,{"$f":"IFERROR(VLOOKUP(A31,'Services-Produits'!A8:B126,2,FALSE),\"\")","v":""},""]
[null,null,{"$f":"IFERROR(VLOOKUP(A32,'Services-Produits'!A9:B127,2,FALSE),\"\")","v":""},""]
[null,null,{"$f":"IFERROR(VLOOKUP(A33,'Services-Produits'!A10:B128,2,FALSE),\"\")","v":""},""]
[null,null,{"$f":"IFERROR(VLOOKUP(A34,'Services-Produits'!A11:B129,2,FALSE),\"\")","v":""},""]
[null,null,{"$f":"IFERROR(VLOOKUP(A35,'Services-Produits'!A12:B130,2,FALSE),\"\")","v":""},""]
[null,null,{"$f":"IFERROR(VLOOKUP(A36,'Services-Produits'!A13:B131,2,FALSE),\"\")","v":""},""]
[null,null,{"$f":"IFERROR(VLOOKUP(A37,'Services-Produits'!A14:B132,2,FALSE),\"\")","v":""}]
["Total in CHF",null,null,{"$f":"SUM(D17:D37)","v":1462.35}]
[]
["Thank you very much for your trust!"]

{"sheet":"Titi Salim","index":11,"n_rows":40,"n_cols":4,"rows_kept":40,"cut":false,"hidden":false,"merged":[]}
[]
[]
["Invoice: 55H-92401004"]
["                  29.01.2024"]
[]
[]
[]
[]
["Mr. Titi Salim"]
["Jakarta"]
["Indonesia"]
[]
[]
["Description","Qty","Price","Amount"]
["Patient: Titi Salim, M, 01.06.1971"]
[]
["Microbiome",3,{"$f":"IFERROR(VLOOKUP(A17,'Services-Produits'!A1:B119,2,FALSE),\"\")","v":74.95},{"$f":"IFERROR(B17*C17,\"\")","v":224.85000000000002}]
["Microcare personalised",1,{"$f":"IFERROR(VLOOKUP(A18,'Services-Produits'!A2:B120,2,FALSE),\"\")","v":0},{"$f":"IFERROR(B18*C18,\"\")","v":0}]
["Omega 7",1,{"$f":"IFERROR(VLOOKUP(A19,'Services-Produits'!A3:B121,2,FALSE),\"\")","v":82.6},82.6]
["Abbott Freestyle libre",3,{"$f":"IFERROR(VLOOKUP(A20,'Services-Produits'!A4:B122,2,FALSE),\"\")","v":91.4},274.20000000000005]
["Abbott Freestyle libre 2 sensor 14 days",72,{"$f":"IFERROR(VLOOKUP(A21,'Services-Produits'!A5:B123,2,FALSE),\"\")","v":65.3},4701.5999999999995]
[null,null,{"$f":"IFERROR(VLOOKUP(A22,'Services-Produits'!A6:B124,2,FALSE),\"\")","v":""},""]
[null,null,{"$f":"IFERROR(VLOOKUP(A23,'Services-Produits'!A7:B125,2,FALSE),\"\")","v":""},""]
[null,null,{"$f":"IFERROR(VLOOKUP(A24,'Services-Produits'!A8:B126,2,FALSE),\"\")","v":""},""]
[null,null,{"$f":"IFERROR(VLOOKUP(A25,'Services-Produits'!A9:B127,2,FALSE),\"\")","v":""},""]
[null,null,{"$f":"IFERROR(VLOOKUP(A26,'Services-Produits'!A10:B128,2,FALSE),\"\")","v":""},""]
[null,null,{"$f":"IFERROR(VLOOKUP(A27,'Services-Produits'!A11:B129,2,FALSE),\"\")","v":""},""]
[null,null,{"$f":"IFERROR(VLOOKUP(A28,'Services-Produits'!A12:B130,2,FALSE),\"\")","v":""},""]
[null,null,{"$f":"IFERROR(VLOOKUP(A29,'Services-Produits'!A13:B131,2,FALSE),\"\")","v":""},""]
[null,null,{"$f":"IFERROR(VLOOKUP(A30,'Services-Produits'!A14:B132,2,FALSE),\"\")","v":""},""]
[null,null,{"$f":"IFERROR(VLOOKUP(A31,'Services-Produits'!A8:B126,2,FALSE),\"\")","v":""},""]
[null,null,{"$f":"IFERROR(VLOOKUP(A32,'Services-Produits'!A9:B127,2,FALSE),\"\")","v":""},""]
[null,null,{"$f":"IFERROR(VLOOKUP(A33,'Services-Produits'!A10:B128,2,FALSE),\"\")","v":""},""]
[null,null,{"$f":"IFERROR(VLOOKUP(A34,'Services-Produits'!A11:B129,2,FALSE),\"\")","v":""},""]
[null,null,{"$f":"IFERROR(VLOOKUP(A35,'Services-Produits'!A12:B130,2,FALSE),\"\")","v":""},""]
[null,null,{"$f":"IFERROR(VLOOKUP(A36,'Services-Produits'!A13:B131,2,FALSE),\"\")","v":""},""]
[null,null,{"$f":"IFERROR(VLOOKUP(A37,'Services-Produits'!A14:B132,2,FALSE),\"\")","v":""}]
["Total in CHF",null,null,{"$f":"SUM(D17:D37)","v":5283.25}]
[]
["Thank you very much for your trust!"]

{"sheet":"Test 2 pages","index":12,"n_rows":39,"n_cols":8,"rows_kept":39,"cut":false,"hidden":false,"merged":[]}
[5346]
[]
["Invoice: 55H-0231115"]
["                  23.12.2023"]
[null,null,"Treatment by",null,"Description","Qty","Price","Amount"]
[null,null,"Dr. Roger Gmür",null,"Patient: Deddy Prasetyo, M, 26.07.1968"]
[null,null,"Zürich"]
[null,null,null,null,"Gut Microbiome Therapy",4,{"$f":"IFERROR(VLOOKUP(E8,'Services-Produits'!#REF!,2,FALSE),\"\")","v":""},{"$f":"IFERROR(F8*G8,\"\")","v":""}]
["Mr. Deddy Prasetyo",null,null,null,"curcumin 75 mg",1,{"$f":"IFERROR(VLOOKUP(E9,'Services-Produits'!#REF!,2,FALSE),\"\")","v":""},{"$f":"IFERROR(F9*G9,\"\")","v":""}]
["Jakarta",null,null,null,"Bosvene Akba",1,{"$f":"IFERROR(VLOOKUP(E10,'Services-Produits'!#REF!,2,FALSE),\"\")","v":""},""]
["Indonesia",null,null,null,"Gynophilus",1,{"$f":"IFERROR(VLOOKUP(E11,'Services-Produits'!#REF!,2,FALSE),\"\")","v":""},""]
[null,null,null,null,null,null,{"$f":"IFERROR(VLOOKUP(E12,'Services-Produits'!#REF!,2,FALSE),\"\")","v":""},""]
[null,null,null,null,null,null,{"$f":"IFERROR(VLOOKUP(E13,'Services-Produits'!#REF!,2,FALSE),\"\")","v":""},""]
["Description","Qty","Price","Amount",null,null,{"$f":"IFERROR(VLOOKUP(E14,'Services-Produits'!#REF!,2,FALSE),\"\")","v":""},""]
["Patient: Deddy Prasetyo, M, 26.07.1968",null,null,null,null,null,{"$f":"IFERROR(VLOOKUP(E15,'Services-Produits'!#REF!,2,FALSE),\"\")","v":""},""]
[null,null,null,null,null,null,{"$f":"IFERROR(VLOOKUP(E16,'Services-Produits'!#REF!,2,FALSE),\"\")","v":""},""]
["Gut Microbiome Therapy",4,{"$f":"IFERROR(VLOOKUP(A17,'Services-Produits'!A1:B119,2,FALSE),\"\")","v":6912.5},{"$f":"IFERROR(B17*C17,\"\")","v":27650},null,null,{"$f":"IFERROR(VLOOKUP(E17,'Services-Produits'!E1:F119,2,FALSE),\"\")","v":""},""]
["curcumin 75 mg",1,{"$f":"IFERROR(VLOOKUP(A18,'Services-Produits'!A2:B120,2,FALSE),\"\")","v":116.22},{"$f":"IFERROR(B18*C18,\"\")","v":116.22},null,null,{"$f":"IFERROR(VLOOKUP(E18,'Services-Produits'!E2:F120,2,FALSE),\"\")","v":""},""]
["Bosvene Akba",1,{"$f":"IFERROR(VLOOKUP(A19,'Services-Produits'!A3:B121,2,FALSE),\"\")","v":215.11},215.11,null,null,{"$f":"IFERROR(VLOOKUP(E19,'Services-Produits'!E3:F121,2,FALSE),\"\")","v":""},""]
["Gynophilus",1,{"$f":"IFERROR(VLOOKUP(A20,'Services-Produits'!A4:B122,2,FALSE),\"\")","v":19.8},19.8,null,null,{"$f":"IFERROR(VLOOKUP(E20,'Services-Produits'!E4:F122,2,FALSE),\"\")","v":""},""]
["Microbiome",8,{"$f":"IFERROR(VLOOKUP(A21,'Services-Produits'!A5:B123,2,FALSE),\"\")","v":74.95},599.6,null,null,{"$f":"IFERROR(VLOOKUP(E21,'Services-Produits'!E5:F123,2,FALSE),\"\")","v":""},""]
["Vit, B Komplex",1,{"$f":"IFERROR(VLOOKUP(A22,'Services-Produits'!A6:B124,2,FALSE),\"\")","v":46.8},46.8,null,null,{"$f":"IFERROR(VLOOKUP(E22,'Services-Produits'!#REF!,2,FALSE),\"\")","v":""},""]
["Fermanose",2,{"$f":"IFERROR(VLOOKUP(A23,'Services-Produits'!A7:B125,2,FALSE),\"\")","v":46.2},92.4,null,null,{"$f":"IFERROR(VLOOKUP(E23,'Services-Produits'!#REF!,2,FALSE),\"\")","v":""},""]
["Fermanose",6,{"$f":"IFERROR(VLOOKUP(A24,'Services-Produits'!A8:B126,2,FALSE),\"\")","v":46.2},277.20000000000005,null,null,{"$f":"IFERROR(VLOOKUP(E24,'Services-Produits'!E1:F119,2,FALSE),\"\")","v":""},""]
["Oliphenolia",1,{"$f":"IFERROR(VLOOKUP(A25,'Services-Produits'!A9:B127,2,FALSE),\"\")","v":183.51},183.51,null,null,{"$f":"IFERROR(VLOOKUP(E25,'Services-Produits'!E2:F120,2,FALSE),\"\")","v":""},""]
[null,null,{"$f":"IFERROR(VLOOKUP(A26,'Services-Produits'!A10:B128,2,FALSE),\"\")","v":""},"",null,null,{"$f":"IFERROR(VLOOKUP(E26,'Services-Produits'!E3:F121,2,FALSE),\"\")","v":""},""]
[null,null,{"$f":"IFERROR(VLOOKUP(A27,'Services-Produits'!A11:B129,2,FALSE),\"\")","v":""},"",null,null,{"$f":"IFERROR(VLOOKUP(E27,'Services-Produits'!E4:F122,2,FALSE),\"\")","v":""},""]
[null,6,{"$f":"IFERROR(VLOOKUP(A28,'Services-Produits'!A12:B130,2,FALSE),\"\")","v":""},"",null,null,{"$f":"IFERROR(VLOOKUP(E28,'Services-Produits'!E5:F123,2,FALSE),\"\")","v":""}]
[null,1,{"$f":"IFERROR(VLOOKUP(A29,'Services-Produits'!A13:B131,2,FALSE),\"\")","v":""},"","Total in CHF",null,null,{"$f":"SUM(H8:H28)","v":0}]
[null,1,{"$f":"IFERROR(VLOOKUP(A30,'Services-Produits'!A14:B132,2,FALSE),\"\")","v":""},""]
[null,null,{"$f":"IFERROR(VLOOKUP(A31,'Services-Produits'!A8:B126,2,FALSE),\"\")","v":""},"","Thank you very much for your trust!"]
[null,1,{"$f":"IFERROR(VLOOKUP(A32,'Services-Produits'!A9:B127,2,FALSE),\"\")","v":""},""]
[null,8,{"$f":"IFERROR(VLOOKUP(A33,'Services-Produits'!A10:B128,2,FALSE),\"\")","v":""},""]
[null,1,{"$f":"IFERROR(VLOOKUP(A34,'Services-Produits'!A11:B129,2,FALSE),\"\")","v":""},""]
[null,2,{"$f":"IFERROR(VLOOKUP(A35,'Services-Produits'!A12:B130,2,FALSE),\"\")","v":""},""]
[null,9,{"$f":"IFERROR(VLOOKUP(A36,'Services-Produits'!A13:B131,2,FALSE),\"\")","v":""},""]
[]
[null,null,{"$f":"IFERROR(VLOOKUP(A38,'Services-Produits'!A14:B132,2,FALSE),\"\")","v":""}]
["Total in CHF",null,null,{"$f":"SUM(D17:D38)","v":29200.639999999999}]

{"sheet":"Ita Yuliati","index":13,"n_rows":41,"n_cols":4,"rows_kept":41,"cut":false,"hidden":false,"merged":[]}
[]
[]
["Invoice: 55H-92401001"]
["                  29.01.2024"]
[]
[]
[]
[]
["Mrs. Ita Yuliati"]
["Jakarta"]
["Indonesia"]
[]
[]
["Description","Qty","Price","Amount"]
["Patient: Ita Yuliati, F, 30.07.1960"]
[]
["Gut Microbiome Therapy",4,{"$f":"IFERROR(VLOOKUP(A17,'[1]Services-Produits'!A1:B120,2,FALSE),\"\")","v":7199.75},{"$f":"IFERROR(B17*C17,\"\")","v":28799}]
[]
["Infusion:"]
["Curcumin 150 mg",1,{"$f":"IFERROR(VLOOKUP(A20,'[1]Services-Produits'!A3:B122,2,FALSE),\"\")","v":229.2},{"$f":"IFERROR(B20*C20,\"\")","v":229.2}]
["Hypericin",1,{"$f":"IFERROR(VLOOKUP(A21,'[1]Services-Produits'!A4:B123,2,FALSE),\"\")","v":198.7},198.7]
["Spermidin",1,{"$f":"IFERROR(VLOOKUP(A22,'[1]Services-Produits'!A5:B124,2,FALSE),\"\")","v":182.35},182.35]
[null,null,{"$f":"IFERROR(VLOOKUP(A23,'[1]Services-Produits'!A6:B125,2,FALSE),\"\")","v":""},""]
["Patient: Doni Irawan Soenarso, M, 13.19.1960",null,{"$f":"IFERROR(VLOOKUP(A24,'[1]Services-Produits'!A7:B126,2,FALSE),\"\")","v":""},""]
["Gut Microbiome Therapy",4,{"$f":"IFERROR(VLOOKUP(A25,'[1]Services-Produits'!A8:B127,2,FALSE),\"\")","v":7199.75},28799]
[]
["Infusion:"]
["Curcumin 150 mg",4,{"$f":"IFERROR(VLOOKUP(A28,'[1]Services-Produits'!A10:B129,2,FALSE),\"\")","v":229.2},916.8]
["Hypericin",1,{"$f":"IFERROR(VLOOKUP(A29,'[1]Services-Produits'!A11:B130,2,FALSE),\"\")","v":198.7},198.7]
[null,null,{"$f":"IFERROR(VLOOKUP(A30,'[1]Services-Produits'!A12:B131,2,FALSE),\"\")","v":""},""]
["Supplement & Medication:"]
["Microbiome",1,{"$f":"IFERROR(VLOOKUP(A32,'[1]Services-Produits'!A14:B133,2,FALSE),\"\")","v":74.95},74.95]
["Tadalafil-Mepha 2.5 mg",2,{"$f":"IFERROR(VLOOKUP(A33,'[1]Services-Produits'!A8:B127,2,FALSE),\"\")","v":115},230]
["Vit-C Intercell",1,{"$f":"IFERROR(VLOOKUP(A34,'[1]Services-Produits'!A9:B128,2,FALSE),\"\")","v":27.99},27.99]
[null,null,{"$f":"IFERROR(VLOOKUP(A35,'[1]Services-Produits'!A10:B129,2,FALSE),\"\")","v":""},""]
[null,null,{"$f":"IFERROR(VLOOKUP(A36,'[1]Services-Produits'!A13:B132,2,FALSE),\"\")","v":""},""]
[null,null,{"$f":"IFERROR(VLOOKUP(A37,'[1]Services-Produits'!A14:B133,2,FALSE),\"\")","v":""}]
["Total in CHF",null,null,{"$f":"SUM(D17:D37)","v":59656.689999999995}]
[]
["Thank you very much for your trust!"]
["We appreciate, for a payment within 2 weeks."]